fUSD/lending_fUSD_20250514
["ID","MTS","AMOUNT","RATE_DAILY","PERIOD"]
[361076564,1747233060470,-400.0,0.00011792,2]
[361076565,1747233060480,-400.0,0.00011792,2]
[361076566,1747233060490,-903.65,0.00011792,2]
[361076567,1747233060500,-408.6,0.00011792,2]
[361076568,1747233060510,-453.22,0.00011792,2]
[361076569,1747233060519,-400.0,0.00011792,2]
[361076570,1747233060529,-816.9,0.00011792,2]
[361076571,1747233060539,-486.1,0.00011792,2]
[361076572,1747233060549,-400.0,0.00011792,2]
[361076573,1747233060559,-721.86,0.00011792,2]
[361076574,1747233060569,-500.62,0.00011792,2]
[361076575,1747233060579,-512.06,0.00011792,2]
[361076576,1747233060589,-400.0,0.00011792,2]
[361076577,1747233060600,-794.04,0.00011792,2]
[361076578,1747233060610,-400.0,0.00011792,2]
[361076579,1747233060623,-1334.77,0.00011792,2]
[361076580,1747233060633,-400.0,0.00011792,2]
[361076581,1747233060643,-1637.66,0.00011792,2]
[361076582,1747233060652,-400.0,0.00011792,2]
[361076583,1747233060662,-472.55,0.00011792,2]
[361076584,1747233060672,-274.0922375,0.00011792,2]
[361076585,1747233060681,-688.81,0.00011792,2]
[361076586,1747233060691,-400.0,0.00011792,2]
[361076587,1747233060702,-400.0,0.00011792,2]
[361076588,1747233060713,-1294.97,0.00011792,2]
[361076589,1747233060723,-476.36,0.00011792,2]
[361076590,1747233060733,-400.0,0.00011792,2]
[361076591,1747233060743,-708.71,0.00011792,2]
[361076592,1747233060753,-400.0,0.00011792,2]
[361076593,1747233060763,-823.83,0.00011792,2]
[361076594,1747233060772,-400.0,0.00011792,2]
[361076595,1747233060782,-403.39,0.00011792,2]
[361076596,1747233060792,-400.0,0.00011792,2]
[361076597,1747233060802,-400.0,0.00011792,2]
[361076598,1747233060811,-400.0,0.00011792,2]
[361076599,1747233060821,-400.0,0.00011792,2]
[361076600,1747233060831,-400.0,0.00011792,2]
[361076601,1747233060840,-400.0,0.00011792,2]
[361076602,1747233060849,-5735.4,0.00011792,2]
[361076603,1747233060858,-400.0,0.00011792,2]
[361076604,1747233060869,-400.0,0.00011792,2]
[361076605,1747233060878,-783.95,0.00011792,2]
[361076606,1747233060888,-1605.55,0.00011792,2]
[361076607,1747233060898,-576.45,0.00011792,2]
[361076608,1747233060907,-400.0,0.00011792,2]
[361076609,1747233060917,-808.92,0.00011792,2]
[361076610,1747233060926,-563.55,0.00011792,2]
[361076611,1747233060936,-1315.54,0.00011792,2]
[361076612,1747233060946,-400.0,0.00011792,2]
[361076613,1747233060956,-1894.41,0.00011792,2]
[361076614,1747233060966,-9675.81,0.00011792,2]
[361076615,1747233060976,-400.0,0.00011792,2]
[361076616,1747233060987,-400.0,0.00011792,2]
[361076617,1747233060998,-400.0,0.00011792,2]
[361076618,1747233061008,-400.0,0.00011792,2]
[361076619,1747233061020,-400.0,0.00011792,2]
[361076620,1747233061030,-935.14,0.00011792,2]
[361076621,1747233061040,-1206.0,0.00011792,2]
[361076622,1747233061049,-400.0,0.00011792,2]
[361076623,1747233061060,-577.58,0.00011792,2]
[361076624,1747233061068,-400.0,0.00011792,2]
[361076625,1747233061075,-861.06,0.00011792,2]
[361076626,1747233061085,-400.0,0.00011792,2]
[361076627,1747233061098,-400.0,0.00011792,2]
[361076628,1747233061108,-14214.27,0.00011792,2]
[361076629,1747233061119,-400.0,0.00011792,2]
[361076630,1747233061129,-756.51,0.00011792,2]
[361076631,1747233061141,-645.12,0.00011792,2]
[361076632,1747233061151,-423.45,0.00011792,2]
[361076633,1747233061160,-2883.58,0.00011792,2]
[361076634,1747233061172,-400.0,0.00011792,2]
[361076635,1747233061182,-400.0,0.00011792,2]
[361076636,1747233061192,-400.0,0.00011792,2]
[361076637,1747233061202,-498.93,0.00011792,2]
[361076638,1747233061212,-400.0,0.00011792,2]
[361076639,1747233061222,-406.51,0.00011792,2]
[361076640,1747233061232,-545.39,0.00011792,2]
[361076641,1747233061242,-400.0,0.00011792,2]
[361076642,1747233061256,-400.0,0.00011792,2]
[361076643,1747233061268,-687.79,0.00011792,2]
[361076644,1747233061279,-1322.06,0.00011792,2]
[361076645,1747233061290,-400.0,0.00011792,2]
[361076646,1747233061300,-809.08,0.00011792,2]
[361076647,1747233061311,-400.0,0.00011792,2]
[361076648,1747233061322,-681.55,0.00011792,2]
[361076649,1747233061332,-542.67,0.00011792,2]
[361076650,1747233061343,-400.0,0.00011792,2]
[361076651,1747233061353,-400.0,0.00011792,2]
[361076652,1747233061364,-877.95,0.00011792,2]
[361076653,1747233061378,-400.0,0.00011792,2]
[361076654,1747233061389,-374.72403714,0.00011792,2]
[361076655,1747233061399,-400.0,0.00011792,2]
[361076656,1747233061411,-400.0,0.00011792,2]
[361076657,1747233061422,-400.0,0.00011792,2]
[361076658,1747233061435,-400.0,0.00011792,2]
[361076659,1747233061446,-400.0,0.00011792,2]
[361076660,1747233061459,-151.0,0.00011793,2]
[361076661,1747233061471,-151.0,0.00011793,2]
[361076662,1747233061482,-400.0,0.00011793,2]
[361076663,1747233061493,-400.0,0.00011793,2]
[361076664,1747233061505,-400.0,0.00011793,2]
[361076665,1747233061517,-425.27,0.00011793,2]
[361076666,1747233061528,-400.0,0.00011793,2]
[361076667,1747233061540,-400.0,0.00011793,2]
[361076668,1747233061551,-483.85,0.00011793,2]
[361076669,1747233061562,-428.91,0.00011793,2]
[361076670,1747233061572,-436.16,0.00011793,2]
[361076671,1747233061583,-1000.0,0.00011821,2]
[361076672,1747233061595,-7781.423799,0.000119,2]
[361076673,1747233061606,-165.0,0.00011913,2]
[361076674,1747233061618,-1000.0,0.00011919,2]
[361076675,1747233061635,-717.0,0.00011957,2]
[361076676,1747233061647,-4399.79472853,0.0001196,2]
[361076677,1747233061657,-2167.12810008,0.00011966,2]
[361076678,1747233061670,-500.0,0.00011972,2]
[361076679,1747233061679,-2000.0,0.00011972,2]
[361076680,1747233061687,-500.0,0.00011972,2]
[361076681,1747233061696,-200.0,0.00011972,2]
[361076682,1747233061706,-1000.0,0.00011999,2]
[361076683,1747233061715,-151.0,0.00012,2]
[361076684,1747233061724,-151.0,0.00012,2]
[361076685,1747233061732,-456.3,0.00012,2]
[361076686,1747233061741,-6022.39,0.00012,2]
[361076687,1747233061750,-500.0,0.00012,2]
[361076688,1747233061761,-273076.45281638,0.00012,2]
[361076689,1747233061770,-1813.4968564,0.00012007,2]
[361076690,1747233061780,-719.04747942,0.00012059,2]
[361076691,1747233061790,-400.0,0.00012064,2]
[361076692,1747233061802,-400.0,0.00012064,2]
[361076693,1747233061814,-620.28,0.00012064,2]
[361076694,1747233061826,-400.0,0.00012064,2]
[361076695,1747233061838,-400.0,0.00012064,2]
[361076696,1747233061851,-400.0,0.00012064,2]
[361076697,1747233061863,-613.76,0.00012064,2]
[361076698,1747233061875,-400.0,0.00012064,2]
[361076699,1747233061886,-1240.52,0.00012064,2]
[361076700,1747233061898,-400.0,0.00012064,2]
[361076701,1747233061909,-400.0,0.00012064,2]
[361076702,1747233061920,-2755.69,0.00012064,2]
[361076703,1747233061932,-924.76,0.00012064,2]
[361076704,1747233061943,-400.0,0.00012064,2]
[361076705,1747233061955,-974.33,0.00012064,2]
[361076706,1747233061966,-1632.3,0.00012064,2]
[361076707,1747233061978,-2465.19,0.00012064,2]
[361076708,1747233061989,-1210.81,0.00012064,2]
[361076709,1747233062000,-710.4,0.00012064,2]
[361076710,1747233062012,-452.18,0.00012064,2]
[361076711,1747233062024,-400.0,0.00012064,2]
[361076712,1747233062036,-400.0,0.00012064,2]
[361076713,1747233062048,-400.0,0.00012064,2]
[361076714,1747233062058,-400.0,0.00012064,2]
[361076715,1747233062070,-899.45,0.00012064,2]
[361076716,1747233062082,-482.499844,0.00012064,2]
[361076717,1747233062097,-950.45,0.00012064,2]
[361076718,1747233062109,-546.67,0.00012064,2]
[361076719,1747233062119,-400.0,0.00012064,2]
[361076720,1747233062146,-400.0,0.00012064,2]
[361076721,1747233062154,-425.96,0.00012064,2]
[361076722,1747233062165,-430.89,0.00012064,2]
[361076723,1747233062177,-300.0,0.00012064,2]
[361076724,1747233062187,-300.0,0.00012064,2]
[361076725,1747233062198,-618.18,0.00012065,2]
[361076726,1747233062208,-1867.92,0.00012065,2]
[361076727,1747233062220,-759.55,0.00012065,2]
[361076728,1747233062230,-400.0,0.00012065,2]
[361076729,1747233062240,-558.93,0.00012065,2]
[361076730,1747233062251,-400.0,0.00012065,2]
[361076731,1747233062261,-912.56,0.00012065,2]
[361076732,1747233062272,-433.37,0.00012065,2]
[361076733,1747233062282,-572.8,0.00012065,2]
[361076734,1747233062293,-487.85,0.00012065,2]
[361076735,1747233062303,-400.0,0.00012065,2]
[361076736,1747233062313,-643.56,0.00012065,2]
[361076737,1747233062323,-428.68,0.00012065,2]
[361076738,1747233062334,-400.0,0.00012065,2]
[361076739,1747233062344,-519.13,0.00012065,2]
[361076740,1747233062355,-465.16,0.00012065,2]
[361076741,1747233062366,-400.0,0.00012065,2]
[361076742,1747233062376,-400.0,0.00012065,2]
[361076743,1747233062388,-400.0,0.00012065,2]
[361076744,1747233062398,-400.0,0.00012065,2]
[361076745,1747233062409,-1125.88,0.00012065,2]
[361076746,1747233062419,-400.0,0.00012065,2]
[361076747,1747233062429,-765.54,0.00012065,2]
[361076748,1747233062439,-400.0,0.00012065,2]
[361076749,1747233062449,-6772.009679,0.00012065,2]
[361076750,1747233062459,-207.181584,0.00012065,2]
[361076751,1747233062469,-620.36,0.00012065,2]
[361076752,1747233062478,-400.0,0.00012065,2]
[361076753,1747233062488,-469.67,0.00012065,2]
[361076754,1747233062498,-570.38,0.00012065,2]
[361076755,1747233062508,-520.54,0.00012065,2]
[361076756,1747233062517,-561.94,0.00012065,2]
[361076757,1747233062527,-400.0,0.00012065,2]
[361076758,1747233062537,-530.29,0.00012065,2]
[361076759,1747233062547,-400.0,0.00012065,2]
[361076760,1747233062557,-496.88,0.00012065,2]
[361076761,1747233062567,-400.0,0.00012065,2]
[361076762,1747233062577,-400.0,0.00012065,2]
[361076763,1747233062587,-400.0,0.00012065,2]
[361076764,1747233062597,-400.0,0.00012065,2]
[361076765,1747233062838,-400.0,0.00012065,2]
[361076766,1747233062848,-473.35,0.00012065,2]
[361076767,1747233062858,-803.77,0.00012065,2]
[361076768,1747233062869,-400.0,0.00012065,2]
[361076769,1747233062880,-626.34,0.00012065,2]
[361076770,1747233062891,-591.08,0.00012065,2]
[361076771,1747233062901,-456.07,0.00012065,2]
[361076772,1747233062911,-4896.9,0.00012065,2]
[361076773,1747233062920,-400.0,0.00012065,2]
[361076774,1747233062930,-34.25328291,0.00012065,2]
[361076775,1747233062951,-514.28671709,0.00012065,2]
[361076776,1747233062960,-300.0,0.00012065,2]
[361076777,1747233062970,-503.82,0.00012065,2]
[361076778,1747233062980,-400.0,0.00012065,2]
[361076779,1747233062990,-656.32,0.00012065,2]
[361076780,1747233062999,-1170.34,0.00012065,2]
[361076781,1747233063010,-3660.43,0.00012065,2]
[361076782,1747233063020,-400.0,0.00012065,2]
[361076783,1747233063029,-435.84,0.00012065,2]
[361076784,1747233063039,-400.0,0.00012065,2]
[361076785,1747233063049,-1067.81,0.00012065,2]
[361076786,1747233063059,-588.53,0.00012065,2]
[361076787,1747233063069,-1498.61,0.00012065,2]
[361076788,1747233063079,-1099.48,0.00012065,2]
[361076789,1747233063091,-595.69,0.00012065,2]
[361076790,1747233063106,-1229.38,0.00012065,2]
[361076791,1747233063117,-2309.4,0.00012065,2]
[361076792,1747233063130,-760.79,0.00012065,2]
[361076793,1747233063142,-438.98,0.00012065,2]
[361076794,1747233063153,-400.0,0.00012065,2]
[361076795,1747233063163,-787.26,0.00012065,2]
[361076796,1747233063175,-1068.6,0.00012065,2]
[361076797,1747233063186,-157.17078329,0.00012065,2]
[361076798,1747233063198,-242.82921671,0.00012065,2]
[361076799,1747233063208,-669.67,0.00012065,2]
[361076800,1747233063218,-3065.87,0.00012065,2]
[361076801,1747233063228,-1620.07,0.00012065,2]
[361076802,1747233063238,-2986.87,0.00012065,2]
[361076803,1747233063248,-1653.13,0.00012065,2]
[361076804,1747233063258,-770.31,0.00012065,2]
[361076805,1747233063269,-1708.92,0.00012065,2]
[361076806,1747233063280,-400.0,0.00012065,2]
[361076807,1747233063291,-1266.68,0.00012065,2]
[361076808,1747233063301,-400.0,0.00012065,2]
[361076809,1747233063311,-938.25,0.00012065,2]
[361076810,1747233063321,-1176.2,0.00012065,2]
[361076811,1747233063332,-1175.15,0.00012065,2]
[361076812,1747233063343,-1266.59,0.00012065,2]
[361076813,1747233063353,-1318.66,0.00012065,2]
[361076814,1747233063364,-2429.17,0.00012065,2]
[361076815,1747233063379,-400.0,0.00012065,2]
[361076816,1747233063391,-463.91,0.00012065,2]
[361076817,1747233063403,-1447.22,0.00012065,2]
[361076818,1747233063414,-2053.01,0.00012065,2]
[361076819,1747233063425,-2062.49,0.00012065,2]
[361076820,1747233063435,-400.0,0.00012065,2]
[361076821,1747233063446,-400.0,0.00012065,2]
[361076822,1747233063456,-626.09,0.00012065,2]
[361076823,1747233063467,-743.89,0.00012065,2]
[361076824,1747233063477,-4694.52589465,0.00012065,2]
[361076825,1747233063490,-793.79410535,0.00012065,2]
[361076826,1747233063501,-1088.62,0.00012065,2]
[361076827,1747233063511,-546.22,0.00012065,2]
[361076828,1747233063521,-400.0,0.00012065,2]
[361076829,1747233063531,-400.0,0.00012065,2]
[361076830,1747233063542,-417.85,0.00012065,2]
[361076831,1747233063552,-607.4,0.00012065,2]
[361076832,1747233063562,-3877.58400665,0.00012065,2]
[361076833,1747233063574,-628.83599335,0.00012065,2]
[361076834,1747233063584,-965.31399465,0.00012065,2]
[361076835,1747233063601,-1342.71600535,0.00012065,2]
[361076836,1747233063610,-439.31,0.00012065,2]
[361076837,1747233063620,-217.97399465,0.00012065,2]
[361076838,1747233063638,-5376.57600535,0.00012065,2]
[361076839,1747233063649,-993.41,0.00012065,2]
[361076840,1747233063660,-1139.65,0.00012065,2]
[361076841,1747233063671,-300.0,0.00012065,2]
[361076842,1747233063681,-151.0,0.00012065,2]
[361076843,1747233063692,-580.59,0.00012065,2]
[361076844,1747233063702,-3507.6,0.00012065,2]
[361076845,1747233063713,-693.99,0.00012065,2]
[361076846,1747233063723,-1803.1,0.00012065,2]
[361076847,1747233063734,-400.0,0.00012065,2]
[361076848,1747233063745,-2228.34,0.00012065,2]
[361076849,1747233063755,-1322.06,0.00012065,2]
[361076850,1747233063766,-400.0,0.00012065,2]
[361076851,1747233063777,-400.0,0.00012065,2]
[361076852,1747233063787,-400.0,0.00012065,2]
[361076853,1747233063797,-400.0,0.00012065,2]
[361076854,1747233063807,-400.0,0.00012065,2]
[361076855,1747233063817,-871.24,0.00012065,2]
[361076856,1747233063827,-400.0,0.00012065,2]
[361076857,1747233063837,-407.41,0.00012065,2]
[361076858,1747233063848,-512.39,0.00012065,2]
[361076859,1747233063859,-1808.91,0.00012065,2]
[361076860,1747233063870,-166.910034,0.00012065,2]
[361076861,1747233063883,-1304.51,0.00012065,2]
[361076862,1747233063893,-476.66,0.00012065,2]
[361076863,1747233063903,-400.0,0.00012065,2]
[361076864,1747233063913,-4688.03,0.00012065,2]
[361076865,1747233063922,-400.0,0.00012065,2]
[361076866,1747233063932,-673.14,0.00012065,2]
[361076867,1747233063942,-400.0,0.00012065,2]
[361076868,1747233063953,-400.0,0.00012065,2]
[361076869,1747233063963,-13288.72,0.00012065,2]
[361076870,1747233063974,-2258.76,0.00012065,2]
[361076871,1747233063984,-151.0,0.00012065,2]
[361076872,1747233063993,-162.984459,0.00012065,2]
[361076873,1747233064004,-177.71073097,0.00012065,2]
[361076874,1747233064014,-629.04,0.00012065,2]
[361076875,1747233064024,-519.76,0.00012065,2]
[361076876,1747233064034,-1146.54,0.00012065,2]
[361076877,1747233064044,-400.0,0.00012065,2]
[361076878,1747233064055,-400.0,0.00012065,2]
[361076879,1747233064065,-646.27,0.00012065,2]
[361076880,1747233064075,-151.0,0.00012065,2]
[361076881,1747233064086,-158.058379,0.00012065,2]
[361076882,1747233064100,-4101.08,0.00012065,2]
[361076883,1747233064111,-400.0,0.00012065,2]
[361076884,1747233064121,-555.25,0.00012065,2]
[361076885,1747233064135,-636.19,0.00012065,2]
[361076886,1747233064145,-1541.56,0.00012065,2]
[361076887,1747233064154,-400.0,0.00012066,2]
[361076888,1747233064163,-400.0,0.00012066,2]
[361076889,1747233064173,-400.0,0.00012066,2]
[361076890,1747233064184,-400.0,0.00012066,2]
[361076891,1747233064194,-400.0,0.00012066,2]
[361076892,1747233064204,-400.0,0.00012066,2]
[361076893,1747233064214,-400.0,0.00012066,2]
[361076894,1747233064224,-250.0,0.00012066,2]
[361076895,1747233064234,-400.0,0.00012066,2]
[361076896,1747233064244,-400.0,0.00012066,2]
[361076897,1747233064255,-400.0,0.00012066,2]
[361076898,1747233064265,-400.0,0.00012066,2]
[361076899,1747233064275,-400.0,0.00012066,2]
[361076900,1747233064285,-400.0,0.00012066,2]
[361076901,1747233064295,-400.0,0.00012066,2]
[361076902,1747233064304,-506.65,0.00012066,2]
[361076903,1747233064313,-400.0,0.00012066,2]
[361076904,1747233064323,-400.0,0.00012066,2]
[361076905,1747233064332,-400.0,0.00012066,2]
[361076906,1747233064342,-469.45,0.00012066,2]
[361076907,1747233064353,-400.0,0.00012066,2]
[361076908,1747233064364,-424.35,0.00012066,2]
[361076909,1747233064378,-400.0,0.00012066,2]
[361076910,1747233064388,-370.47120673,0.00012066,2]
[361076911,1747233064400,-1069.85,0.00012066,2]
[361076912,1747233064410,-400.0,0.00012066,2]
[361076913,1747233064421,-400.0,0.00012066,2]
[361076914,1747233064431,-400.0,0.00012066,2]
[361076915,1747233064441,-789.95,0.00012066,2]
[361076916,1747233064451,-400.0,0.00012066,2]
[361076917,1747233064462,-803.37,0.00012066,2]
[361076918,1747233064472,-400.0,0.00012066,2]
[361076919,1747233064482,-406.58,0.00012066,2]
[361076920,1747233064492,-400.0,0.00012066,2]
[361076921,1747233064502,-400.0,0.00012066,2]
[361076922,1747233064511,-374.90088909,0.00012066,2]
[361076923,1747233065013,-151.0,0.00011278,2]
[361076924,1747233065023,-837.0,0.00011472,2]
[361076925,1747233065032,-353.50911091,0.00012066,2]
[361076926,1747233065041,-455.32,0.00012066,2]
[361076927,1747233065051,-581.24,0.00012066,2]
[361076928,1747233065061,-474.14,0.00012066,2]
[361076929,1747233065070,-400.0,0.00012066,2]
[361076930,1747233065081,-73.06237727,0.00012066,2]
[361076931,1747233065531,-326.93762273,0.00012066,2]
[361076932,1747233065540,-33.08237727,0.00012066,2]
[361076933,1747233065551,-371.56762273,0.00012066,2]
[361076934,1747233065560,-457.14,0.00012066,2]
[361076935,1747233065569,-479.28,0.00012066,2]
[361076936,1747233065578,-400.0,0.00012066,2]
[361076937,1747233065587,-400.0,0.00012066,2]
[361076938,1747233065597,-609.17550187,0.00012066,2]
[361076939,1747233065608,-234.32449813,0.00012066,2]
[361076940,1747233065618,-434.21,0.00012066,2]
[361076941,1747233065630,-400.0,0.00012066,2]
[361076942,1747233065639,-28.2286033,0.00012066,2]
[361076943,1747233065655,-371.7713967,0.00012066,2]
[361076944,1747233065664,-536.57,0.00012066,2]
[361076945,1747233065673,-400.0,0.00012066,2]
[361076946,1747233065682,-400.0,0.00012066,2]
[361076947,1747233065691,-400.0,0.00012066,2]
[361076948,1747233065701,-400.0,0.00012066,2]
[361076949,1747233065709,-400.0,0.00012066,2]
[361076950,1747233065718,-499.04744878,0.00012066,2]
[361076951,1747233065727,-97.29296205,0.00012066,2]
[361076952,1747233065738,-313.04516356,0.00012066,2]
[361076953,1747233065747,-400.0,0.00012066,2]
[361076954,1747233065756,-1260.76,0.00012066,2]
[361076955,1747233065768,-400.0,0.00012066,2]
[361076956,1747233065777,-1308.79,0.00012066,2]
[361076957,1747233065786,-639.72,0.00012066,2]
[361076958,1747233065795,-400.0,0.00012066,2]
[361076959,1747233065804,-400.0,0.00012066,2]
[361076960,1747233065813,-717.50554914,0.00012066,2]
[361076961,1747233065825,-399.61275,0.00012066,2]
[361076962,1747233065836,-269.93170086,0.00012066,2]
[361076963,1747233065845,-414.15,0.00012066,2]
[361076964,1747233065855,-400.0,0.00012066,2]
[361076965,1747233065864,-709.08,0.00012066,2]
[361076966,1747233065873,-545.35,0.00012066,2]
[361076967,1747233065882,-400.0,0.00012066,2]
[361076968,1747233065890,-400.0,0.00012066,2]
[361076969,1747233065898,-400.0,0.00012066,2]
[361076970,1747233065906,-456.7,0.00012066,2]
[361076971,1747233065914,-400.0,0.00012066,2]
[361076972,1747233065922,-400.0,0.00012066,2]
[361076973,1747233065928,-2686.27,0.00012066,2]
[361076974,1747233065935,-400.0,0.00012066,2]
[361076975,1747233065943,-400.0,0.00012066,2]
[361076976,1747233065951,-292.73636054,0.00012066,2]
[361076977,1747233065958,-400.0,0.00012066,2]
[361076978,1747233065965,-329.70992273,0.00012066,2]
[361076979,1747233065972,-896.96,0.00012066,2]
[361076980,1747233065980,-400.0,0.00012066,2]
[361076981,1747233065987,-400.0,0.00012066,2]
[361076982,1747233065997,-400.0,0.00012066,2]
[361076983,1747233066006,-400.0,0.00012066,2]
[361076984,1747233066015,-400.0,0.00012066,2]
[361076985,1747233066024,-400.0,0.00012066,2]
[361076986,1747233066033,-400.0,0.00012066,2]
[361076987,1747233066042,-400.0,0.00012066,2]
[361076988,1747233066051,-476.80402395,0.00012066,2]
[361076989,1747233066063,-28.54597605,0.00012066,2]
[361076990,1747233066072,-400.12,0.00012066,2]
[361076991,1747233066081,-309.64248309,0.00012066,2]
[361076992,1747233066094,-524.7295493,0.00012066,2]
[361076993,1747233066108,-37.32796761,0.00012066,2]
[361076994,1747233066118,-400.0,0.00012066,2]
[361076995,1747233066128,-891.44,0.00012066,2]
[361076996,1747233066138,-415.98839485,0.00012066,2]
[361076997,1747233066148,-400.0,0.00012066,2]
[361076998,1747233066158,-28.15855803,0.00012066,2]
[361076999,1747233066170,-875.49144197,0.00012066,2]
[361077000,1747233066180,-329.60855051,0.00012066,2]
[361077001,1747233066192,-78.99144949,0.00012066,2]
[361077002,1747233066201,-453.22,0.00012066,2]
[361077003,1747233066211,-400.0,0.00012066,2]
[361077004,1747233066221,-816.9,0.00012066,2]
[361077005,1747233066231,-486.1,0.00012066,2]
[361077006,1747233066240,-721.86,0.00012066,2]
[361077007,1747233066250,-500.62,0.00012066,2]
[361077008,1747233066260,-512.06,0.00012066,2]
[361077009,1747233066270,-400.0,0.00012066,2]
[361077010,1747233066279,-794.04,0.00012066,2]
[361077011,1747233066289,-65.20855051,0.00012066,2]
[361077012,1747233066301,-334.79144949,0.00012066,2]
[361077013,1747233066310,-1334.77,0.00012066,2]
[361077014,1747233066319,-400.0,0.00012066,2]
[361077015,1747233066329,-1637.66,0.00012066,2]
[361077016,1747233066338,-400.0,0.00012066,2]
[361077017,1747233066348,-472.55,0.00012066,2]
[361077018,1747233066358,-688.81,0.00012066,2]
[361077019,1747233066367,-400.0,0.00012066,2]
[361077020,1747233066378,-400.0,0.00012066,2]
[361077021,1747233066388,-1294.97,0.00012066,2]
[361077022,1747233066397,-476.36,0.00012066,2]
[361077023,1747233066407,-708.71,0.00012066,2]
[361077024,1747233066417,-400.0,0.00012066,2]
[361077025,1747233066427,-823.83,0.00012066,2]
[361077026,1747233066436,-400.0,0.00012066,2]
[361077027,1747233066446,-403.39,0.00012066,2]
[361077028,1747233066456,-400.0,0.00012066,2]
[361077029,1747233066466,-151.0,0.00012066,2]
[361077030,1747233066476,-400.0,0.00012066,2]
[361077031,1747233066486,-400.0,0.00012066,2]
[361077032,1747233066496,-400.0,0.00012066,2]
[361077033,1747233066506,-400.0,0.00012066,2]
[361077034,1747233066515,-151.0,0.00012066,2]
[361077035,1747233066527,-151.0,0.00012066,2]
[361077036,1747233066537,-5735.4,0.00012066,2]
[361077037,1747233066546,-400.0,0.00012066,2]
[361077038,1747233066556,-470.53197806,0.00012066,2]
[361077039,1747233066565,-783.95,0.00012066,2]
[361077040,1747233066574,-221.27657246,0.00012066,2]
[361077046,1747233514941,405.86,8.292e-05,2]
[361077084,1747233926486,905.03902532,0.00025,60]
[361077091,1747234187230,1000.0,0.00025,60]
[361077092,1747234187289,1000.0,0.00025,60]
[361077097,1747234223960,1468.56,0.00025,60]
[361077106,1747234232005,-1000.0,0.00010349,2]
[361077107,1747234232014,-1000.0,0.00010492,2]
[361077108,1747234232024,-61.1,0.00010556,2]
[361077109,1747234232035,-344.76,0.00010556,2]
[361077110,1747234232045,-258.45,0.00010582,2]
[361077111,1747234232055,-179.48,0.00010725,2]
[361077112,1747234232064,-1000.0,0.00010737,2]
[361077113,1747234232074,-1200.0,0.00010866,2]
[361077114,1747234232085,-547.49386349,0.00010867,2]
[361077115,1747234232094,-300.0,0.00010867,2]
[361077116,1747234232104,-300.0,0.00010867,2]
[361077117,1747234232113,-11333.58883653,0.00010868,2]
[361077118,1747234232419,-15551.44286347,0.00010868,2]
[361077119,1747234232428,-150.0,0.00010868,2]
[361077121,1747234232438,-500.0,0.00010869,2]
[361077123,1747234232451,-2899.2,0.00010869,2]
[361077125,1747234232460,-1487.35713653,0.00010869,2]
[361077127,1747234232471,-19769.9883088,0.00010869,2]